[Event "*** Titled Tuesday Blitz"]
[Site "Chess.com"]
[Date "2021.04.27"]
[Round "10"]
[White "szachuspl"]
[Black "Matensien"]
[Result "1-0"]
[WhiteElo "2529"]
[BlackElo "2348"]
[TimeControl "180+1"]
[EndTime "11:52:45 PDT"]
[Termination "szachuspl won on time"]

1. e4 {[%clk 0:03:00.9]} 1... c5 {[%clk 0:02:45.2]} 2. d4 {[%clk 0:02:58.8]}
2... cxd4 {[%clk 0:02:44.6]} 3. c3 {[%clk 0:02:58.8]} 3... g6 {[%clk 0:02:43.7]}
4. cxd4 {[%clk 0:02:58.5]} 4... d5 {[%clk 0:02:43.9]} 5. e5 {[%clk 0:02:58.3]}
5... Bh6 {[%clk 0:02:43.1]} 6. Nc3 {[%clk 0:02:56.3]} 6... Nc6 {[%clk 0:02:42]}
7. Nf3 {[%clk 0:02:52.6]} 7... Bg4 {[%clk 0:02:40.8]} 8. Be2 {[%clk 0:02:53.1]}
8... Bxc1 {[%clk 0:02:36.1]} 9. Rxc1 {[%clk 0:02:52.3]} 9... Nh6 {[%clk
0:02:34.9]} 10. O-O {[%clk 0:02:52.2]} 10... Nf5 {[%clk 0:02:34.6]} 11. h3
{[%clk 0:02:44.8]} 11... Bxf3 {[%clk 0:02:34.4]} 12. Bxf3 {[%clk 0:02:45]} 12...
Nfxd4 {[%clk 0:02:33.2]} 13. Bxd5 {[%clk 0:02:43.8]} 13... O-O {[%clk
0:02:28.7]} 14. Bxc6 {[%clk 0:02:35.4]} 14... Nxc6 {[%clk 0:02:26.7]} 15. Qe2
{[%clk 0:02:30]} 15... Qa5 {[%clk 0:02:23.9]} 16. f4 {[%clk 0:02:28.1]} 16...
Rfd8 {[%clk 0:02:19.7]} 17. Rce1 {[%clk 0:02:21.6]} 17... Rd4 {[%clk 0:02:10.8]}
18. f5 {[%clk 0:02:20.1]} 18... Rad8 {[%clk 0:01:57.9]} 19. fxg6 {[%clk
0:02:15.6]} 19... hxg6 {[%clk 0:01:56.4]} 20. e6 {[%clk 0:02:07.7]} 20... f5
{[%clk 0:01:54.6]} 21. Qf2 {[%clk 0:01:55.4]} 21... Rd2 {[%clk 0:01:32]} 22. Qg3
{[%clk 0:01:53.9]} 22... Kg7 {[%clk 0:01:32.6]} 23. Ne4 {[%clk 0:01:40]} 23...
Rxb2 {[%clk 0:01:28.2]} 24. Qg5 {[%clk 0:01:25.2]} 24... Qe5 {[%clk 0:00:51.3]}
25. Ng3 {[%clk 0:01:20.7]} 25... Qd4+ {[%clk 0:00:14.6]} 26. Kh1 {[%clk
0:01:19.3]} 26... Kh7 {[%clk 0:00:15.1]} 27. Nxf5 {[%clk 0:01:06.3]} 27... gxf5
{[%clk 0:00:08.7]} 28. Rxf5 {[%clk 0:00:58.9]} 28... Qg7 {[%clk 0:00:01.8]} 29.
Rf7 {[%clk 0:00:51.8]} 1-0

[Event "*** Titled Tuesday Blitz"]
[Site "Chess.com"]
[Date "2021.04.27"]
[Round "10"]
[White "adriangschnitzer"]
[Black "Margency"]
[Result "1-0"]
[WhiteElo "2526"]
[BlackElo "2647"]
[TimeControl "180+1"]
[EndTime "11:52:49 PDT"]
[Termination "adriangschnitzer won by resignation"]

1. e4 {[%clk 0:03:00.9]} 1... c5 {[%clk 0:02:59.7]} 2. a3 {[%clk 0:02:58.7]}
2... g6 {[%clk 0:02:59.1]} 3. h4 {[%clk 0:02:57.9]} 3... h5 {[%clk 0:02:58.8]}
4. Nc3 {[%clk 0:02:58.2]} 4... Bg7 {[%clk 0:02:58]} 5. Bc4 {[%clk 0:02:57.8]}
5... Nc6 {[%clk 0:02:57.8]} 6. d3 {[%clk 0:02:57]} 6... d6 {[%clk 0:02:57.6]} 7.
Bg5 {[%clk 0:02:56.6]} 7... Nf6 {[%clk 0:02:57.1]} 8. Nf3 {[%clk 0:02:54.9]}
8... Bg4 {[%clk 0:02:56.2]} 9. Nd5 {[%clk 0:02:46.5]} 9... e6 {[%clk 0:02:52.3]}
10. Ne3 {[%clk 0:02:41.1]} 10... Bxf3 {[%clk 0:02:48]} 11. gxf3 {[%clk
0:02:38.7]} 11... a6 {[%clk 0:02:44.4]} 12. a4 {[%clk 0:02:32.7]} 12... Qa5+
{[%clk 0:02:36.1]} 13. c3 {[%clk 0:02:28.4]} 13... Ne5 {[%clk 0:02:33.3]} 14. f4
{[%clk 0:02:20]} 14... Nxc4 {[%clk 0:02:30]} 15. Nxc4 {[%clk 0:02:20.9]} 15...
Qc7 {[%clk 0:02:30]} 16. e5 {[%clk 0:02:15.9]} 16... dxe5 {[%clk 0:02:29.4]} 17.
fxe5 {[%clk 0:02:16.8]} 17... Nd5 {[%clk 0:02:28.2]} 18. Nd6+ {[%clk 0:02:13]}
18... Kf8 {[%clk 0:02:28.1]} 19. f4 {[%clk 0:02:01.5]} 19... Kg8 {[%clk
0:02:23.2]} 20. Qf3 {[%clk 0:01:56.3]} 20... Kh7 {[%clk 0:02:21.4]} 21. Rg1
{[%clk 0:01:49.9]} 21... Rhf8 {[%clk 0:02:20.1]} 22. Ne4 {[%clk 0:01:44.7]}
22... b5 {[%clk 0:02:12.8]} 23. Kf2 {[%clk 0:01:23.8]} 23... c4 {[%clk
0:01:50.9]} 24. d4 {[%clk 0:01:22.9]} 24... b4 {[%clk 0:01:49.5]} 25. Bf6 {[%clk
0:00:38.6]} 25... Bh6 {[%clk 0:01:43.4]} 26. Ng5+ {[%clk 0:00:28]} 26... Kg8
{[%clk 0:01:40.2]} 27. Nxe6 {[%clk 0:00:18.6]} 27... Qd7 {[%clk 0:01:25.7]} 28.
Qxh5 {[%clk 0:00:15.5]} 28... Nxf6 {[%clk 0:00:57.9]} 29. exf6 {[%clk
0:00:15.4]} 29... Qxe6 {[%clk 0:00:53.1]} 30. Rxg6+ {[%clk 0:00:14.6]} 30...
fxg6 {[%clk 0:00:50.2]} 31. Qxg6+ {[%clk 0:00:15.5]} 1-0

[Event "*** Titled Tuesday Blitz"]
[Site "Chess.com"]
[Date "2021.04.27"]
[Round "10"]
[White "vanyakuba"]
[Black "LenkaPtacnikova"]
[Result "1-0"]
[WhiteElo "2398"]
[BlackElo "2201"]
[TimeControl "180+1"]
[EndTime "11:52:53 PDT"]
[Termination "vanyakuba won by resignation"]

1. e4 {[%clk 0:03:00.9]} 1... d5 {[%clk 0:02:52.4]} 2. exd5 {[%clk 0:03:01]}
2... Qxd5 {[%clk 0:02:53]} 3. Nc3 {[%clk 0:03:01.2]} 3... Qd8 {[%clk 0:02:51.3]}
4. d4 {[%clk 0:03:01.1]} 4... Nf6 {[%clk 0:02:50.7]} 5. Nf3 {[%clk 0:03:01]}
5... c6 {[%clk 0:02:49.1]} 6. Bc4 {[%clk 0:02:59.9]} 6... Bf5 {[%clk 0:02:46.7]}
7. Ne5 {[%clk 0:02:58.7]} 7... e6 {[%clk 0:02:46.6]} 8. g4 {[%clk 0:02:52.1]}
8... Bg6 {[%clk 0:02:46.5]} 9. h4 {[%clk 0:02:51.2]} 9... h6 {[%clk 0:02:36.8]}
10. Nxg6 {[%clk 0:02:50.4]} 10... fxg6 {[%clk 0:02:37.4]} 11. Bxe6 {[%clk
0:02:42.6]} 11... Bb4 {[%clk 0:02:36.6]} 12. Be3 {[%clk 0:02:02.1]} 12... Qd6
{[%clk 0:02:30.5]} 13. Bb3 {[%clk 0:01:55.5]} 13... Ne4 {[%clk 0:02:26]} 14. Qd3
{[%clk 0:01:48]} 14... Nxc3 {[%clk 0:02:21]} 15. bxc3 {[%clk 0:01:47.7]} 15...
Ba5 {[%clk 0:02:21.1]} 16. Qe4+ {[%clk 0:01:08.3]} 16... Kd8 {[%clk 0:02:15.8]}
17. O-O {[%clk 0:00:55.2]} 17... Bxc3 {[%clk 0:02:11.8]} 18. Rad1 {[%clk
0:00:54.6]} 18... Nd7 {[%clk 0:02:10.6]} 19. Bf4 {[%clk 0:00:51.9]} 19... Qe7
{[%clk 0:01:58.9]} 20. Qxg6 {[%clk 0:00:44.7]} 20... Qxh4 {[%clk 0:01:49.2]} 21.
Rd3 {[%clk 0:00:37.6]} 21... Bb4 {[%clk 0:01:46]} 22. c3 {[%clk 0:00:33]} 22...
Be7 {[%clk 0:01:43.5]} 23. Re1 {[%clk 0:00:31.2]} 23... Bg5 {[%clk 0:01:26.6]}
24. Bg3 {[%clk 0:00:27.7]} 24... Qxg4 {[%clk 0:01:15.6]} 25. Be6 {[%clk
0:00:20]} 25... Nf8 {[%clk 0:01:04]} 26. Qxg7 {[%clk 0:00:19.5]} 26... Nxe6
{[%clk 0:00:54.2]} 27. Qxh8+ {[%clk 0:00:10.6]} 27... Kd7 {[%clk 0:00:54.7]} 28.
Qxa8 {[%clk 0:00:10.6]} 28... Nd8 {[%clk 0:00:54.6]} 29. Qxa7 {[%clk 0:00:08.4]}
29... h5 {[%clk 0:00:50]} 30. Qb8 {[%clk 0:00:05.4]} 1-0

[Event "*** Titled Tuesday Blitz"]
[Site "Chess.com"]
[Date "2021.04.27"]
[Round "10"]
[White "Lion-Al-Messi"]
[Black "ckgchess"]
[Result "0-1"]
[WhiteElo "2509"]
[BlackElo "2691"]
[TimeControl "180+1"]
[EndTime "11:52:56 PDT"]
[Termination "ckgchess won by resignation"]

1. e4 {[%clk 0:02:54.5]} 1... g6 {[%clk 0:02:56.5]} 2. d4 {[%clk 0:02:54.2]}
2... Bg7 {[%clk 0:02:56.8]} 3. Nf3 {[%clk 0:02:54.6]} 3... d6 {[%clk 0:02:57.3]}
4. c3 {[%clk 0:02:54.7]} 4... c5 {[%clk 0:02:55.9]} 5. dxc5 {[%clk 0:02:54.1]}
5... dxc5 {[%clk 0:02:56.8]} 6. Qxd8+ {[%clk 0:02:54.3]} 6... Kxd8 {[%clk
0:02:57.7]} 7. Be3 {[%clk 0:02:52.5]} 7... Nd7 {[%clk 0:02:56]} 8. Bb5 {[%clk
0:02:50.9]} 8... Ngf6 {[%clk 0:02:52.7]} 9. Ng5 {[%clk 0:02:30.1]} 9... Rf8
{[%clk 0:02:26.4]} 10. Nd2 {[%clk 0:02:29.2]} 10... h6 {[%clk 0:02:21.9]} 11.
Ngf3 {[%clk 0:02:28.8]} 11... a6 {[%clk 0:02:22]} 12. Be2 {[%clk 0:02:25.2]}
12... b5 {[%clk 0:02:17.5]} 13. e5 {[%clk 0:02:22.1]} 13... Ng4 {[%clk 0:02:15]}
14. Ne4 {[%clk 0:02:17.9]} 14... Nxe3 {[%clk 0:02:10.9]} 15. fxe3 {[%clk
0:02:18.1]} 15... Bb7 {[%clk 0:02:11.6]} 16. Nf2 {[%clk 0:02:15.7]} 16... Nxe5
{[%clk 0:02:10.1]} 17. O-O-O+ {[%clk 0:02:10.1]} 17... Kc7 {[%clk 0:02:08.5]}
18. Kb1 {[%clk 0:01:57.3]} 18... Rad8 {[%clk 0:02:01.6]} 19. Rde1 {[%clk
0:01:47.7]} 19... f5 {[%clk 0:01:47]} 20. Nh3 {[%clk 0:01:40.7]} 20... g5 {[%clk
0:01:39.9]} 21. Nf2 {[%clk 0:01:29]} 21... Nxf3 {[%clk 0:01:32]} 22. gxf3 {[%clk
0:01:26.8]} 22... Rd2 {[%clk 0:01:19.1]} 23. Kc1 {[%clk 0:01:26]} 23... Rfd8
{[%clk 0:01:17.8]} 24. h4 {[%clk 0:01:26.3]} 24... b4 {[%clk 0:01:09.8]} 25.
hxg5 {[%clk 0:01:26.3]} 25... bxc3 {[%clk 0:01:08]} 26. gxh6 {[%clk 0:01:26.3]}
26... cxb2+ {[%clk 0:01:06.9]} 27. Kb1 {[%clk 0:01:26.3]} 27... Bh8 {[%clk
0:01:03.6]} 28. Nh3 {[%clk 0:01:01.5]} 28... Rxe2 {[%clk 0:00:40.7]} 29. Rxe2
{[%clk 0:01:01.5]} 29... Bxf3 {[%clk 0:00:40.9]} 30. Rxb2 {[%clk 0:01:01.5]}
30... Be4+ {[%clk 0:00:34.5]} 31. Kc1 {[%clk 0:00:59.4]} 31... Bxb2+ {[%clk
0:00:34.1]} 32. Kxb2 {[%clk 0:00:58.6]} 32... Bxh1 {[%clk 0:00:35]} 33. Nf4
{[%clk 0:00:56.7]} 33... Rh8 {[%clk 0:00:33.1]} 34. Ng6 {[%clk 0:00:55.4]} 34...
Rxh6 {[%clk 0:00:32.9]} 35. Nxe7 {[%clk 0:00:54.5]} 35... Be4 {[%clk 0:00:32.7]}
36. Ng8 {[%clk 0:00:53.1]} 36... Rg6 {[%clk 0:00:29.4]} 37. Ne7 {[%clk
0:00:52.9]} 37... Rg7 {[%clk 0:00:29]} 38. Nd5+ {[%clk 0:00:52.6]} 38... Bxd5
{[%clk 0:00:29.1]} 39. a4 {[%clk 0:00:52.6]} 39... Re7 {[%clk 0:00:28.5]} 40. a5
{[%clk 0:00:51.8]} 40... Rxe3 {[%clk 0:00:20.5]} 0-1

[Event "*** Titled Tuesday Blitz"]
[Site "Chess.com"]
[Date "2021.04.27"]
[Round "10"]
[White "sm_sharon"]
[Black "BanjoKazooieN64"]
[Result "0-1"]
[WhiteElo "2148"]
[BlackElo "2478"]
[TimeControl "180+1"]
[EndTime "11:52:59 PDT"]
[Termination "BanjoKazooieN64 won by resignation"]

1. e4 {[%clk 0:03:00.3]} 1... e5 {[%clk 0:02:05.4]} 2. Bc4 {[%clk 0:02:58.9]}
2... Bc5 {[%clk 0:02:04.6]} 3. d3 {[%clk 0:02:58]} 3... c6 {[%clk 0:02:04.2]} 4.
f4 {[%clk 0:02:57.3]} 4... d5 {[%clk 0:02:04.4]} 5. exd5 {[%clk 0:02:52.1]} 5...
cxd5 {[%clk 0:02:04.5]} 6. Bb5+ {[%clk 0:02:51.3]} 6... Nc6 {[%clk 0:02:04.8]}
7. fxe5 {[%clk 0:02:50.1]} 7... Qb6 {[%clk 0:02:00.4]} 8. Bxc6+ {[%clk
0:02:45.6]} 8... bxc6 {[%clk 0:02:01.3]} 9. Nf3 {[%clk 0:02:44.4]} 9... Bf2+
{[%clk 0:02:01.2]} 10. Kf1 {[%clk 0:02:42.4]} 10... Bg4 {[%clk 0:02:01.7]} 11.
Nc3 {[%clk 0:02:37.8]} 11... Bh4 {[%clk 0:01:56.6]} 12. Qe2 {[%clk 0:02:31.3]}
12... Be7 {[%clk 0:01:56.1]} 13. h3 {[%clk 0:02:28.9]} 13... Bh5 {[%clk
0:01:55.6]} 14. g4 {[%clk 0:02:28.2]} 14... Bg6 {[%clk 0:01:55.8]} 15. Kg2
{[%clk 0:02:27.7]} 15... O-O-O {[%clk 0:01:55.9]} 16. d4 {[%clk 0:02:25.5]}
16... h5 {[%clk 0:01:54.3]} 17. g5 {[%clk 0:02:16.5]} 17... h4 {[%clk
0:01:54.5]} 18. Na4 {[%clk 0:02:13.6]} 18... Qb5 {[%clk 0:01:51.7]} 19. Qxb5
{[%clk 0:02:11.1]} 19... cxb5 {[%clk 0:01:51.3]} 20. Nc3 {[%clk 0:02:10.3]}
20... a6 {[%clk 0:01:51.6]} 21. Be3 {[%clk 0:02:01.2]} 21... Bb4 {[%clk
0:01:46.6]} 22. Ne2 {[%clk 0:01:55.8]} 22... Ne7 {[%clk 0:01:45.8]} 23. c3
{[%clk 0:01:55.2]} 23... Ba5 {[%clk 0:01:45.2]} 24. Nf4 {[%clk 0:01:54.4]} 24...
Be4 {[%clk 0:01:44]} 25. Kf2 {[%clk 0:01:48.4]} 25... Nf5 {[%clk 0:01:44.1]} 26.
Rhg1 {[%clk 0:01:46.4]} 26... Rde8 {[%clk 0:01:35.8]} 27. Nd2 {[%clk 0:01:40.3]}
27... Ng3 {[%clk 0:01:30.6]} 28. Nxe4 {[%clk 0:01:37.5]} 28... Nxe4+ {[%clk
0:01:31.5]} 29. Kf3 {[%clk 0:01:37.2]} 29... Bd8 {[%clk 0:01:30.4]} 30. Nxd5
{[%clk 0:01:35.5]} 30... Ng3 {[%clk 0:01:23.5]} 31. Rxg3 {[%clk 0:01:32]} 31...
hxg3 {[%clk 0:01:23.2]} 32. Kxg3 {[%clk 0:01:31.7]} 32... f6 {[%clk 0:01:23.5]}
33. gxf6 {[%clk 0:01:31]} 33... gxf6 {[%clk 0:01:23.3]} 34. Bf4 {[%clk
0:01:20.9]} 34... fxe5 {[%clk 0:01:15.9]} 35. Bxe5 {[%clk 0:01:20.2]} 35...
Reg8+ {[%clk 0:01:15.2]} 36. Kh2 {[%clk 0:01:19.4]} 36... Rh5 {[%clk 0:01:13.9]}
37. Rf1 {[%clk 0:01:11.6]} 37... Rg6 {[%clk 0:01:09.6]} 38. Rf8 {[%clk
0:01:08.3]} 38... Rgh6 {[%clk 0:01:09.9]} 39. Kg2 {[%clk 0:00:47.9]} 39... Kd7
{[%clk 0:01:01.6]} 40. Rf7+ {[%clk 0:00:37.6]} 40... Ke6 {[%clk 0:00:57.7]} 41.
Rf3 {[%clk 0:00:34.7]} 41... Kxd5 {[%clk 0:00:57.6]} 0-1

[Event "*** Titled Tuesday Blitz"]
[Site "Chess.com"]
[Date "2021.04.27"]
[Round "10"]
[White "gmpeter008"]
[Black "PolandHussars"]
[Result "1-0"]
[WhiteElo "2487"]
[BlackElo "2617"]
[TimeControl "180+1"]
[EndTime "11:53:03 PDT"]
[Termination "gmpeter008 won by resignation"]

1. d4 {[%clk 0:03:00.9]} 1... Nf6 {[%clk 0:02:59.1]} 2. Bf4 {[%clk 0:03:00.2]}
2... c5 {[%clk 0:02:56.4]} 3. e3 {[%clk 0:03:00.1]} 3... Qb6 {[%clk 0:02:55.8]}
4. Nc3 {[%clk 0:03:00.4]} 4... d5 {[%clk 0:02:52.3]} 5. Nb5 {[%clk 0:02:58.7]}
5... Na6 {[%clk 0:02:52.1]} 6. a4 {[%clk 0:02:58.8]} 6... Bf5 {[%clk 0:02:45]}
7. a5 {[%clk 0:02:25.4]} 7... Qd8 {[%clk 0:02:42.3]} 8. Nf3 {[%clk 0:02:03.5]}
8... e6 {[%clk 0:02:41.5]} 9. Be2 {[%clk 0:02:01.9]} 9... Be7 {[%clk 0:02:38.5]}
10. O-O {[%clk 0:02:00]} 10... O-O {[%clk 0:02:38.4]} 11. dxc5 {[%clk
0:01:53.1]} 11... Nxc5 {[%clk 0:02:33.1]} 12. Nbd4 {[%clk 0:01:50.6]} 12... Bg6
{[%clk 0:02:32.6]} 13. c4 {[%clk 0:01:50.8]} 13... Rc8 {[%clk 0:02:26.9]} 14. b4
{[%clk 0:01:48.3]} 14... Nce4 {[%clk 0:02:26.9]} 15. c5 {[%clk 0:01:48.5]} 15...
Nc3 {[%clk 0:02:25.2]} 16. Qd2 {[%clk 0:01:48.3]} 16... Nfe4 {[%clk 0:02:24.9]}
17. Qb2 {[%clk 0:01:48.3]} 17... Nxe2+ {[%clk 0:02:17.6]} 18. Nxe2 {[%clk
0:01:47.4]} 18... Bh5 {[%clk 0:02:11.8]} 19. Rfd1 {[%clk 0:01:45.4]} 19... Bf6
{[%clk 0:02:05.5]} 20. Be5 {[%clk 0:01:44.6]} 20... Bxf3 {[%clk 0:02:03.8]} 21.
gxf3 {[%clk 0:01:41.6]} 21... Ng5 {[%clk 0:02:03.7]} 22. Kg2 {[%clk 0:01:41.8]}
22... Bxe5 {[%clk 0:01:58.3]} 23. Qxe5 {[%clk 0:01:42.7]} 23... f6 {[%clk
0:01:57.4]} 24. Qd4 {[%clk 0:01:42]} 24... Qe8 {[%clk 0:01:55.1]} 25. h4 {[%clk
0:01:41.7]} 25... Nf7 {[%clk 0:01:54.1]} 26. Ng3 {[%clk 0:01:41.3]} 26... Ne5
{[%clk 0:01:52.5]} 27. f4 {[%clk 0:01:41.4]} 27... Nc6 {[%clk 0:01:50.4]} 28.
Qd2 {[%clk 0:01:40.5]} 28... a6 {[%clk 0:01:49.4]} 29. Rab1 {[%clk 0:01:39.6]}
29... Kh8 {[%clk 0:01:43.8]} 30. b5 {[%clk 0:01:39.8]} 30... axb5 {[%clk
0:01:42.5]} 31. Rxb5 {[%clk 0:01:40.7]} 31... Rc7 {[%clk 0:01:42.7]} 32. Rdb1
{[%clk 0:01:40]} 32... Qf7 {[%clk 0:01:38.4]} 33. f5 {[%clk 0:01:38.1]} 33...
exf5 {[%clk 0:01:36]} 34. Nxf5 {[%clk 0:01:38]} 34... Ne5 {[%clk 0:01:32.5]} 35.
Ng3 {[%clk 0:01:28.9]} 35... f5 {[%clk 0:01:28.6]} 36. Qd4 {[%clk 0:01:25.3]}
36... Re7 {[%clk 0:01:26.2]} 37. Rd1 {[%clk 0:01:02.2]} 37... Rd8 {[%clk
0:01:06.8]} 38. h5 {[%clk 0:00:59.3]} 38... h6 {[%clk 0:01:02.3]} 39. Qf4 {[%clk
0:00:56.3]} 39... Rf8 {[%clk 0:00:53.4]} 40. Rb6 {[%clk 0:00:56.4]} 40... Ng4
{[%clk 0:00:41.1]} 41. Rg6 {[%clk 0:00:51.5]} 41... Ne5 {[%clk 0:00:38.4]} 42.
Rd6 {[%clk 0:00:49.4]} 42... Nc4 {[%clk 0:00:30.7]} 43. R6xd5 {[%clk 0:00:49.2]}
43... Nxa5 {[%clk 0:00:29.6]} 44. Rxf5 {[%clk 0:00:48.5]} 1-0

[Event "*** Titled Tuesday Blitz"]
[Site "Chess.com"]
[Date "2021.04.27"]
[Round "10"]
[White "miragha_yev"]
[Black "AlexSuv"]
[Result "1-0"]
[WhiteElo "2748"]
[BlackElo "2583"]
[TimeControl "180+1"]
[EndTime "11:53:05 PDT"]
[Termination "miragha_yev won by resignation"]

1. d4 {[%clk 0:03:00.9]} 1... Nf6 {[%clk 0:02:59.1]} 2. Nf3 {[%clk 0:02:59]}
2... e6 {[%clk 0:02:58.4]} 3. c4 {[%clk 0:02:57.5]} 3... d5 {[%clk 0:02:57.5]}
4. Nc3 {[%clk 0:02:56.4]} 4... Bb4 {[%clk 0:02:56.8]} 5. cxd5 {[%clk 0:02:54.8]}
5... exd5 {[%clk 0:02:56.5]} 6. Bg5 {[%clk 0:02:54.4]} 6... h6 {[%clk
0:02:55.9]} 7. Bh4 {[%clk 0:02:49.4]} 7... O-O {[%clk 0:02:49.2]} 8. e3 {[%clk
0:02:47.4]} 8... Bf5 {[%clk 0:02:47.6]} 9. Qb3 {[%clk 0:02:43]} 9... Bxc3+
{[%clk 0:02:37.5]} 10. Qxc3 {[%clk 0:02:43.9]} 10... g5 {[%clk 0:02:33.9]} 11.
Bg3 {[%clk 0:02:43.4]} 11... c6 {[%clk 0:02:26.4]} 12. Be2 {[%clk 0:02:41.2]}
12... Nbd7 {[%clk 0:02:21.5]} 13. O-O {[%clk 0:02:32.2]} 13... Ne4 {[%clk
0:02:21.2]} 14. Qa3 {[%clk 0:02:31.8]} 14... Bg4 {[%clk 0:02:02.9]} 15. Rfe1
{[%clk 0:02:26]} 15... h5 {[%clk 0:01:52.5]} 16. Bd6 {[%clk 0:02:01.3]} 16...
Re8 {[%clk 0:01:44.6]} 17. h3 {[%clk 0:01:56.5]} 17... Bxf3 {[%clk 0:01:20.9]}
18. Bxf3 {[%clk 0:01:57.4]} 18... Qf6 {[%clk 0:01:21.2]} 19. Bxe4 {[%clk
0:01:51.2]} 19... Rxe4 {[%clk 0:01:17.6]} 20. Bh2 {[%clk 0:01:45.6]} 20... g4
{[%clk 0:00:54.5]} 21. Qd6 {[%clk 0:01:34.7]} 21... Qxd6 {[%clk 0:00:48.7]} 22.
Bxd6 {[%clk 0:01:35.6]} 22... f5 {[%clk 0:00:38.5]} 23. f3 {[%clk 0:01:28.3]}
23... Re6 {[%clk 0:00:34.7]} 24. Bf4 {[%clk 0:01:27.8]} 24... Rae8 {[%clk
0:00:22.7]} 25. a4 {[%clk 0:01:22.5]} 25... Rg6 {[%clk 0:00:19.1]} 26. Kf2
{[%clk 0:01:21.8]} 26... Kf7 {[%clk 0:00:14.4]} 27. Ra3 {[%clk 0:01:15.9]} 27...
gxh3 {[%clk 0:00:10.6]} 28. gxh3 {[%clk 0:01:01.3]} 28... Reg8 {[%clk
0:00:10.8]} 29. Ke2 {[%clk 0:00:55.1]} 29... Rg2+ {[%clk 0:00:10.5]} 30. Kd3
{[%clk 0:00:55.6]} 30... Rxb2 {[%clk 0:00:10.9]} 31. Re2 {[%clk 0:00:55.9]}
31... Rb1 {[%clk 0:00:10.1]} 32. Kc2 {[%clk 0:00:54.8]} 32... Rb4 {[%clk
0:00:09.5]} 33. Kc3 {[%clk 0:00:54.4]} 33... a5 {[%clk 0:00:08.8]} 34. Rb3
{[%clk 0:00:54]} 34... Rc4+ {[%clk 0:00:06.7]} 35. Kd3 {[%clk 0:00:53.4]} 35...
b6 {[%clk 0:00:06.5]} 36. Rc2 {[%clk 0:00:52.7]} 36... Rxc2 {[%clk 0:00:06.4]}
37. Kxc2 {[%clk 0:00:53.6]} 37... Rg2+ {[%clk 0:00:06.7]} 38. Kd3 {[%clk
0:00:54]} 38... Re2 {[%clk 0:00:05.7]} 39. Kxe2 {[%clk 0:00:53.6]} 1-0

[Event "*** Titled Tuesday Blitz"]
[Site "Chess.com"]
[Date "2021.04.27"]
[Round "10"]
[White "Leo_C"]
[Black "ri4mi"]
[Result "1-0"]
[WhiteElo "2471"]
[BlackElo "2307"]
[TimeControl "180+1"]
[EndTime "11:53:07 PDT"]
[Termination "Leo_C won by resignation"]

1. d4 {[%clk 0:03:00.9]} 1... d5 {[%clk 0:03:00.1]} 2. c4 {[%clk 0:03:00.6]}
2... c6 {[%clk 0:03:00.5]} 3. cxd5 {[%clk 0:03:00.3]} 3... cxd5 {[%clk
0:03:01.4]} 4. Bf4 {[%clk 0:03:00.7]} 4... Nc6 {[%clk 0:03:01.5]} 5. e3 {[%clk
0:03:01.1]} 5... Bf5 {[%clk 0:03:00.9]} 6. Nc3 {[%clk 0:03:01.2]} 6... Nf6
{[%clk 0:02:59.1]} 7. Qb3 {[%clk 0:02:59.6]} 7... Na5 {[%clk 0:02:26.2]} 8. Qa4+
{[%clk 0:02:58.5]} 8... Bd7 {[%clk 0:02:25.7]} 9. Qc2 {[%clk 0:02:57.8]} 9... g6
{[%clk 0:02:23.1]} 10. Bd3 {[%clk 0:02:55.6]} 10... Rc8 {[%clk 0:02:20.8]} 11.
Qd1 {[%clk 0:02:51.2]} 11... Bg7 {[%clk 0:02:19.6]} 12. Nf3 {[%clk 0:02:49.9]}
12... O-O {[%clk 0:02:19.2]} 13. O-O {[%clk 0:02:49.6]} 13... Bg4 {[%clk
0:02:19.1]} 14. h3 {[%clk 0:02:44.5]} 14... Bxf3 {[%clk 0:02:19.2]} 15. Qxf3
{[%clk 0:02:45.3]} 15... Nc4 {[%clk 0:02:16.7]} 16. Qe2 {[%clk 0:02:43.5]} 16...
a6 {[%clk 0:02:13.2]} 17. a4 {[%clk 0:02:41.2]} 17... Re8 {[%clk 0:02:08.4]} 18.
Rfc1 {[%clk 0:02:38.1]} 18... e6 {[%clk 0:01:54.5]} 19. Bg5 {[%clk 0:02:30.1]}
19... h6 {[%clk 0:01:49.9]} 20. Bh4 {[%clk 0:02:28.7]} 20... Qb6 {[%clk
0:01:39.1]} 21. Rab1 {[%clk 0:02:11.7]} 21... Na5 {[%clk 0:01:33.8]} 22. b4
{[%clk 0:02:09.6]} 22... Nc4 {[%clk 0:01:34]} 23. a5 {[%clk 0:02:07.8]} 23...
Qc6 {[%clk 0:01:22.6]} 24. b5 {[%clk 0:01:59.6]} 24... Qd7 {[%clk 0:01:22.8]}
25. bxa6 {[%clk 0:01:55.2]} 25... bxa6 {[%clk 0:01:23.7]} 26. Qa2 {[%clk
0:01:44.8]} 26... Nh5 {[%clk 0:00:55.1]} 27. g4 {[%clk 0:01:36.3]} 27... g5
{[%clk 0:00:52.4]} 28. gxh5 {[%clk 0:01:35.1]} 28... gxh4 {[%clk 0:00:52.5]} 29.
Na4 {[%clk 0:01:34.3]} 29... Qe7 {[%clk 0:00:42.3]} 30. Kh1 {[%clk 0:01:23.5]}
30... Qf6 {[%clk 0:00:36.9]} 31. Qe2 {[%clk 0:01:22.7]} 31... Kh8 {[%clk
0:00:31.6]} 32. Nb6 {[%clk 0:01:15]} 32... Nxb6 {[%clk 0:00:30.3]} 33. axb6
{[%clk 0:01:14.8]} 33... Rxc1+ {[%clk 0:00:26]} 34. Rxc1 {[%clk 0:01:15.7]}
34... e5 {[%clk 0:00:26.4]} 35. b7 {[%clk 0:01:10.7]} 35... Qb6 {[%clk
0:00:22.6]} 36. Rc8 {[%clk 0:01:07.5]} 36... Rd8 {[%clk 0:00:16.3]} 37. b8=Q
{[%clk 0:01:02.7]} 37... Qxb8 {[%clk 0:00:14.9]} 38. Rxb8 {[%clk 0:01:02.7]}
38... Rxb8 {[%clk 0:00:15.8]} 39. dxe5 {[%clk 0:00:59.1]} 39... Bxe5 {[%clk
0:00:16.7]} 40. Qf3 {[%clk 0:00:57.9]} 40... d4 {[%clk 0:00:13.1]} 41. Qf5
{[%clk 0:00:56.9]} 1-0